fUST/lending_fUST_20241015
["ID","MTS","AMOUNT","RATE_DAILY","PERIOD"]
[340265537,1728948654702,-546.094164,0.00047493,120]
[340265538,1728948654713,-1096.659826,0.00047493,60]
[340265539,1728948654724,-151.0,0.00047493,120]
[340265540,1728948654735,-311.714472,0.00047493,120]
[340265541,1728948654744,-311.714472,0.00047493,120]
[340265542,1728948654754,-151.0,0.00047493,120]
[340265543,1728948654763,-151.0,0.00047493,120]
[340265544,1728948654774,-266.210097,0.00047493,120]
[340265545,1728948654784,-266.210097,0.00047493,120]
[340265546,1728948654793,-1286.364124,0.00047493,120]
[340265547,1728948654802,-1286.364124,0.00047493,120]
[340265548,1728948654813,-151.0,0.00047493,2]
[340265549,1728948654825,-226.193086,0.00047493,120]
[340265550,1728948654836,-226.193086,0.00047493,120]
[340265551,1728948654846,-151.0,0.00047493,120]
[340265552,1728948654858,-151.0,0.00047493,120]
[340265553,1728948654870,-151.0,0.00047493,120]
[340265554,1728948654881,-254.703904,0.00047493,120]
[340265555,1728948654890,-151.0,0.00047493,120]
[340265556,1728948654900,-325.24776,0.00047493,120]
[340265557,1728948654909,-325.24776,0.00047493,120]
[340265558,1728948654920,-316.64382,0.00047493,120]
[340265559,1728948654930,-316.64382,0.00047493,120]
[340265560,1728948654940,-156.1,0.00047503,60]
[340265561,1728948654952,-278.12,0.0004779,120]
[340265562,1728948654962,-985.27374458,0.00047814,2]
[340265563,1728948654972,-502.11977329,0.00047945,30]
[340265564,1728948654981,-500.0,0.00047972,120]
[340265565,1728948654990,-500.0,0.00047972,120]
[340265566,1728948655000,-500.0,0.00047972,120]
[340265567,1728948655010,-500.0,0.00047972,60]
[340265568,1728948655022,-500.0,0.00047972,120]
[340265569,1728948655032,-500.0,0.00047972,120]
[340265570,1728948655042,-500.0,0.00047972,120]
[340265571,1728948655053,-500.0,0.00047973,120]
[340265572,1728948655063,-500.0,0.00047973,120]
[340265573,1728948655073,-500.0,0.00047973,120]
[340265574,1728948655082,-1036.76,0.00047973,120]
[340265575,1728948655093,-500.0,0.00047973,120]
[340265576,1728948655102,-500.0,0.00047973,120]
[340265577,1728948655113,-500.0,0.00047973,120]
[340265578,1728948655123,-500.0,0.00047973,120]
[340265579,1728948655135,-500.0,0.00047973,120]
[340265580,1728948655144,-548.9375823,0.00047973,120]
[340265581,1728948655154,-500.0,0.00047973,120]
[340265582,1728948655164,-500.0,0.00047973,120]
[340265583,1728948655174,-500.0,0.00047973,120]
[340265584,1728948655186,-500.0,0.00047973,120]
[340265585,1728948655195,-500.0,0.00047973,120]
[340265586,1728948655204,-845.02,0.00047973,120]
[340265587,1728948655215,-500.0,0.00047973,120]
[340265588,1728948655226,-500.0,0.00047973,120]
[340265589,1728948655238,-500.0,0.00047973,120]
[340265590,1728948655250,-500.0,0.00047973,120]
[340265591,1728948655262,-500.0,0.00047973,120]
[340265592,1728948655274,-525.89,0.00047973,120]
[340265593,1728948655283,-506.7,0.00047973,120]
[340265594,1728948655293,-500.0,0.00047973,120]
[340265595,1728948655313,-500.0,0.00047973,120]
[340265596,1728948655325,-500.0,0.00047973,120]
[340265597,1728948655335,-500.0,0.00047973,120]
[340265598,1728948655344,-500.0,0.00047973,120]
[340265599,1728948655354,-500.0,0.00047974,120]
[340265600,1728948655363,-500.0,0.00047974,120]
[340265601,1728948655374,-500.0,0.00047974,120]
[340265602,1728948655385,-500.0,0.00047974,120]
[340265603,1728948655395,-500.0,0.00047974,120]
[340265604,1728948655405,-500.0,0.00047974,120]
[340265605,1728948655415,-500.0,0.00047974,120]
[340265606,1728948655424,-500.0,0.00047974,120]
[340265607,1728948655434,-541.60199282,0.00047974,120]
[340265608,1728948655443,-500.0,0.00047974,120]
[340265609,1728948655452,-500.0,0.00047974,120]
[340265610,1728948655462,-500.0,0.00047974,120]
[340265611,1728948655472,-359.77,0.00047974,120]
[340265612,1728948655482,-500.0,0.00047974,120]
[340265613,1728948655492,-500.0,0.00047974,120]
[340265614,1728948655502,-500.0,0.00047974,120]
[340265615,1728948655512,-251.10774219,0.00047974,120]
[340265616,1728948655522,-500.0,0.00047974,120]
[340265617,1728948655532,-500.0,0.00047974,120]
[340265618,1728948655543,-500.0,0.00047974,120]
[340265619,1728948655553,-500.0,0.00047974,120]
[340265620,1728948655564,-546.094164,0.00047974,120]
[340265621,1728948655574,-546.094164,0.00047974,120]
[340265622,1728948655659,-500.0,0.00047974,120]
[340265623,1728948655670,-500.0,0.00047974,120]
[340265624,1728948655683,-1096.659826,0.00047974,60]
[340265625,1728948655697,-500.0,0.00047974,120]
[340265626,1728948655707,-500.0,0.00047974,120]
[340265627,1728948655718,-151.0,0.00047974,120]
[340265628,1728948655729,-151.0,0.00047974,120]
[340265629,1728948655742,-151.0,0.00047974,120]
[340265630,1728948655752,-207.039499,0.00047974,120]
[340265631,1728948655762,-311.714472,0.00047974,120]
[340265632,1728948655773,-207.039499,0.00047974,120]
[340265633,1728948655785,-311.714472,0.00047974,120]
[340265634,1728948655795,-683.6,0.00047974,120]
[340265635,1728948655804,-266.210097,0.00047974,120]
[340265636,1728948655815,-266.210097,0.00047974,120]
[340265637,1728948655826,-472.66781991,0.00047974,120]
[340265638,1728948655837,-226.193086,0.00047974,120]
[340265639,1728948655846,-500.0,0.00047974,120]
[340265640,1728948655856,-226.193086,0.00047974,120]
[340265641,1728948655867,-151.0,0.00047974,120]
[340265642,1728948655879,-151.0,0.00047974,120]
[340265643,1728948655889,-151.0,0.00047974,120]
[340265644,1728948655903,-500.0,0.00047974,120]
[340265645,1728948655915,-151.0,0.00047974,120]
[340265646,1728948655925,-500.0,0.00047974,120]
[340265647,1728948655936,-500.0,0.00047974,120]
[340265648,1728948655947,-500.0,0.00047974,120]
[340265649,1728948655957,-325.24776,0.00047974,120]
[340265650,1728948655968,-325.24776,0.00047974,120]
[340265651,1728948655978,-500.0,0.00047974,120]
[340265652,1728948655988,-316.64382,0.00047974,120]
[340265653,1728948655997,-316.64382,0.00047974,120]
[340265654,1728948656007,-638.06458888,0.0004802,120]
[340265655,1728948656016,-501.73094582,0.00048101,10]
[340265656,1728948656026,-334.02355791,0.00048138,7]
[340265657,1728948656036,-915.96914411,0.00048148,10]
[340265658,1728948656045,-225.57549321,0.0004815,10]
[340265659,1728948656055,-502.76503536,0.00048157,10]
[340265660,1728948656064,-500.72100449,0.00048157,10]
[340265661,1728948656073,-500.54868513,0.00048177,10]
[340265662,1728948656083,-500.0,0.00048177,10]
[340265663,1728948656092,-150.112233,0.000484,12]
[340265664,1728948656110,-334.02355791,0.00048446,7]
[340265665,1728948656130,-151.0,0.00048456,120]
[340265666,1728948656149,-1286.364124,0.00048456,120]
[340265667,1728948656172,-1286.364124,0.00048456,120]
[340265668,1728948656193,-151.0,0.00048456,2]
[340265669,1728948656211,-226.193086,0.00048456,120]
[340265670,1728948656230,-226.193086,0.00048456,120]
[340265671,1728948656246,-151.0,0.00048456,120]
[340265672,1728948656264,-151.0,0.00048456,120]
[340265673,1728948656285,-151.0,0.00048456,120]
[340265674,1728948656300,-325.24776,0.00048456,120]
[340265675,1728948656320,-325.24776,0.00048456,120]
[340265676,1728948656338,-316.64382,0.00048456,120]
[340265677,1728948656357,-316.64382,0.00048456,120]
[340265678,1728948656374,-546.094164,0.00048465,120]
[340265679,1728948656391,-546.094164,0.00048465,120]
[340265680,1728948656407,-1096.659826,0.00048465,60]
[340265681,1728948656422,-151.0,0.00048465,120]
[340265682,1728948656437,-151.0,0.00048465,120]
[340265683,1728948656451,-151.0,0.00048465,120]
[340265684,1728948656464,-207.039499,0.00048465,120]
[340265685,1728948656480,-311.714472,0.00048465,120]
[340265686,1728948656494,-207.039499,0.00048465,120]
[340265687,1728948656509,-311.714472,0.00048465,120]
[340265688,1728948656524,-266.210097,0.00048465,120]
[340265689,1728948656539,-266.210097,0.00048465,120]
[340265690,1728948656553,-150.0,0.00048482,120]
[340265691,1728948656567,-159.37,0.000485,45]
[340265692,1728948656582,-159.37,0.000485,45]
[340265693,1728948656596,-159.37,0.000485,45]
[340265694,1728948656611,-159.37,0.000485,45]
[340265695,1728948656626,-159.37,0.000485,45]
[340265696,1728948656643,-334.02355791,0.00048566,7]
[340265697,1728948656657,-150.0,0.00048573,10]
[340265698,1728948656672,-150.0,0.00048573,7]
[340265699,1728948656688,-500.0,0.00048575,120]
[340265700,1728948656701,-500.0,0.00048575,120]
[340265701,1728948656711,-398.8,0.00048575,120]
[340265702,1728948656721,-500.0,0.00048575,60]
[340265703,1728948656732,-500.0,0.00048575,120]
[340265704,1728948656742,-415.5498398,0.00048575,120]
[340265705,1728948656851,-500.0,0.00048575,120]
[340265706,1728948656870,-500.0,0.00048576,120]
[340265707,1728948656882,-500.0,0.00048576,120]
[340265708,1728948656891,-500.0,0.00048576,120]
[340265709,1728948656901,-500.0,0.00048576,120]
[340265710,1728948656912,-500.0,0.00048576,120]
[340265711,1728948656922,-500.0,0.00048576,120]
[340265712,1728948656932,-500.0,0.00048576,120]
[340265713,1728948656944,-500.0,0.00048576,120]
[340265714,1728948656954,-500.0,0.00048576,120]
[340265715,1728948656965,-500.0,0.00048576,120]
[340265716,1728948656974,-500.0,0.00048576,120]
[340265717,1728948656984,-1036.76,0.00048576,120]
[340265718,1728948656994,-500.0,0.00048576,120]
[340265719,1728948657005,-647.70562622,0.00048576,120]
[340265720,1728948657015,-359.77,0.00048576,120]
[340265721,1728948657024,-500.0,0.00048576,120]
[340265722,1728948657034,-500.0,0.00048576,120]
[340265723,1728948657043,-500.0,0.00048576,120]
[340265724,1728948657053,-500.0,0.00048576,120]
[340265725,1728948657063,-500.0,0.00048576,120]
[340265726,1728948657073,-500.0,0.00048576,120]
[340265727,1728948657083,-500.0,0.00048576,120]
[340265728,1728948657094,-500.0,0.00048576,120]
[340265729,1728948657103,-549.91374018,0.00048576,120]
[340265730,1728948657112,-500.0,0.00048576,120]
[340265731,1728948657123,-500.0,0.00048576,120]
[340265732,1728948657144,-500.0,0.00048576,120]
[340265733,1728948657158,-500.0,0.00048576,120]
[340265734,1728948657169,-500.0,0.00048576,120]
[340265735,1728948657180,-500.0,0.00048576,120]
[340265736,1728948657191,-500.0,0.00048576,120]
[340265737,1728948657203,-500.0,0.00048576,120]
[340265738,1728948657214,-500.0,0.00048576,120]
[340265739,1728948657224,-683.6,0.00048576,120]
[340265740,1728948657235,-500.0,0.00048576,120]
[340265741,1728948657247,-500.0,0.00048576,120]
[340265742,1728948657257,-500.0,0.00048576,120]
[340265743,1728948657267,-845.02,0.00048576,120]
[340265744,1728948657279,-500.0,0.00048576,120]
[340265745,1728948657291,-500.0,0.00048576,120]
[340265746,1728948657302,-500.0,0.00048576,120]
[340265747,1728948657313,-500.0,0.00048576,120]
[340265748,1728948657324,-500.0,0.00048576,120]
[340265749,1728948657333,-500.0,0.00048576,120]
[340265750,1728948657344,-525.89,0.00048576,120]
[340265751,1728948657356,-500.0,0.00048576,120]
[340265752,1728948657366,-506.7,0.00048576,120]
[340265753,1728948657377,-500.0,0.00048576,120]
[340265754,1728948657387,-500.0,0.00048576,120]
[340265755,1728948657397,-500.0,0.00048576,120]
[340265756,1728948657408,-500.0,0.00048576,120]
[340265757,1728948657418,-500.0,0.00048576,120]
[340265758,1728948657427,-500.0,0.00048576,120]
[340265759,1728948657439,-500.0,0.00048576,120]
[340265760,1728948657449,-500.0,0.00048576,120]
[340265761,1728948657459,-500.0,0.00048576,120]
[340265762,1728948657470,-512.695828,0.00048576,120]
[340265763,1728948657480,-512.695828,0.00048576,120]
[340265764,1728948657491,-334.02355791,0.00048579,7]
[340265765,1728948657502,-668.04711582,0.0004858,7]
[340265766,1728948657513,-26717.25820699,0.00048589,63]
[340265767,1728948657523,-500.0,0.00048589,120]
[340265768,1728948657533,-500.0,0.00048589,120]
[340265769,1728948657543,-500.0,0.00048589,7]
[340265770,1728948657552,-547.8758489,0.00048589,120]
[340265771,1728948657562,-574.88510146,0.00048589,120]
[340265772,1728948657572,-500.0,0.00048589,120]
[340265773,1728948657582,-500.0,0.00048589,120]
[340265774,1728948657592,-478.73481286,0.00048589,120]
[340265775,1728948657602,-500.0,0.00048589,120]
[340265776,1728948657612,-500.0,0.00048589,120]
[340265777,1728948657622,-500.0,0.00048589,120]
[340265778,1728948657632,-537.05096431,0.00048589,120]
[340265779,1728948657643,-500.0,0.00048589,120]
[340265780,1728948657652,-500.0,0.00048589,120]
[340265781,1728948657662,-500.0,0.00048589,120]
[340265782,1728948657671,-500.0,0.00048589,120]
[340265783,1728948657682,-364.83049961,0.00048589,120]
[340265784,1728948657695,-500.0,0.00048589,120]
[340265785,1728948657705,-500.0,0.00048589,120]
[340265786,1728948657715,-500.0,0.00048589,120]
[340265787,1728948657724,-500.0,0.00048589,120]
[340265788,1728948657736,-500.0,0.00048589,120]
[340265789,1728948657745,-500.0,0.00048589,120]
[340265790,1728948657755,-363.52603452,0.00048589,120]
[340265791,1728948657765,-500.0,0.00048589,120]
[340265792,1728948657776,-500.0,0.00048589,120]
[340265793,1728948657787,-500.0,0.00048589,120]
[340265794,1728948657796,-500.0,0.00048589,120]
[340265795,1728948657805,-500.0,0.00048589,120]
[340265796,1728948657815,-500.0,0.00048589,120]
[340265797,1728948657825,-500.0,0.00048589,120]
[340265798,1728948657835,-500.0,0.00048589,120]
[340265799,1728948657845,-605.32,0.00048589,120]
[340265800,1728948657855,-499.32835364,0.00048589,120]
[340265801,1728948657865,-500.0,0.00048589,120]
[340265802,1728948657875,-376.65362032,0.00048589,120]
[340265803,1728948657885,-503.9484808,0.00048589,90]
[340265804,1728948657895,-500.0,0.00048589,120]
[340265805,1728948657905,-520.27598215,0.00048589,120]
[340265806,1728948657917,-500.0,0.00048589,120]
[340265807,1728948657927,-500.0,0.00048589,120]
[340265808,1728948657937,-587.83633393,0.00048589,120]
[340265809,1728948657949,-500.0,0.00048589,120]
[340265810,1728948657959,-500.0,0.00048589,120]
[340265811,1728948657970,-500.0,0.00048589,120]
[340265812,1728948657980,-500.0,0.00048589,120]
[340265813,1728948657990,-524.75515833,0.00048589,120]
[340265814,1728948658002,-500.0,0.00048589,120]
[340265815,1728948658013,-217.614369,0.00048589,120]
[340265816,1728948658023,-1286.364124,0.00048589,120]
[340265817,1728948658033,-1286.364124,0.00048589,120]
[340265818,1728948658044,-151.0,0.00048589,2]
[340265819,1728948658054,-546.094164,0.0004859,120]
[340265820,1728948658063,-546.094164,0.0004859,120]
[340265821,1728948658073,-1096.659826,0.0004859,60]
[340265822,1728948658083,-1096.659826,0.0004859,60]
[340265823,1728948658093,-151.0,0.0004859,120]
[340265824,1728948658102,-151.0,0.0004859,120]
[340265825,1728948658111,-207.039499,0.0004859,120]
[340265826,1728948658121,-311.714472,0.0004859,120]
[340265827,1728948658130,-207.039499,0.0004859,120]
[340265828,1728948658141,-311.714472,0.0004859,120]
[340265829,1728948658153,-266.210097,0.0004859,120]
[340265830,1728948658162,-266.210097,0.0004859,120]
[340265831,1728948658172,-1286.364124,0.0004859,120]
[340265832,1728948658182,-1286.364124,0.0004859,120]
[340265833,1728948658192,-225.013466,0.0004859,2]
[340265834,1728948658201,-226.193086,0.0004859,120]
[340265835,1728948658211,-226.193086,0.0004859,120]
[340265836,1728948658220,-151.0,0.0004859,120]
[340265837,1728948658229,-151.0,0.0004859,120]
[340265838,1728948658239,-151.0,0.0004859,120]
[340265839,1728948658248,-325.24776,0.0004859,120]
[340265840,1728948658258,-325.24776,0.0004859,120]
[340265841,1728948658267,-316.64382,0.0004859,120]
[340265842,1728948658277,-316.64382,0.0004859,120]
[340265843,1728948658287,-512.695828,0.0004859,120]
[340265844,1728948658297,-512.695828,0.0004859,120]
[340265845,1728948658309,-88888.0,0.0004859,120]
[340265846,1728948658322,-500.0,0.00048689,120]
[340265847,1728948658333,-500.0,0.00048689,120]
[340265848,1728948658343,-500.0,0.00048689,120]
[340265849,1728948658353,-500.0,0.00048689,60]
[340265850,1728948658363,-500.0,0.00048689,120]
[340265851,1728948658372,-637.20590119,0.00048689,120]
[340265852,1728948658384,-537.9102317,0.00048689,120]
[340265853,1728948658395,-371.94829073,0.00048689,120]
[340265854,1728948658407,-500.0,0.00048689,120]
[340265855,1728948658417,-500.0,0.00048689,120]
[340265856,1728948658427,-500.0,0.00048689,120]
[340265857,1728948658439,-500.0,0.00048689,120]
[340265858,1728948658449,-711.58,0.00048689,120]
[340265859,1728948658459,-500.0,0.00048689,120]
[340265860,1728948658468,-500.0,0.00048689,120]
[340265861,1728948658477,-500.0,0.00048689,120]
[340265862,1728948658486,-261.64962859,0.00048689,120]
[340265863,1728948658495,-500.0,0.00048689,2]
[340265864,1728948658505,-500.0,0.00048689,120]
[340265865,1728948658514,-500.0,0.00048689,120]
[340265866,1728948658524,-1387.79302057,0.00048699,2]
[340265867,1728948658534,-521.21404085,0.00048699,120]
[340265868,1728948658543,-500.0,0.00048699,120]
[340265869,1728948658553,-500.0,0.00048699,120]
[340265870,1728948658562,-333.24543506,0.00048699,120]
[340265871,1728948658649,-500.0,0.00048699,120]
[340265872,1728948658660,-506.38201378,0.00048699,120]
[340265873,1728948658669,-500.0,0.00048699,120]
[340265874,1728948658679,-500.0,0.00048699,120]
[340265875,1728948658691,-362.61360996,0.00048699,120]
[340265876,1728948658704,-609.96609691,0.00048699,120]
[340265877,1728948658714,-500.0,0.00048699,120]
[340265878,1728948658725,-500.0,0.00048699,120]
[340265879,1728948658736,-1520.58768598,0.000487,2]
[340265880,1728948658746,-502.98971341,0.00048773,7]
[340265881,1728948658757,-602.35698918,0.00048773,7]
[340265882,1728948658767,-151.0,0.0004879,120]
[340265883,1728948658776,-151.0,0.0004879,7]
[340265884,1728948658785,-151.0,0.0004879,120]
[340265885,1728948658794,-151.0,0.0004879,120]
[340265886,1728948658803,-151.0,0.0004879,120]
[340265887,1728948658812,-158.067028,0.0004879,120]
[340265888,1728948658821,-185.453252,0.0004879,100]
[340265889,1728948658830,-185.453252,0.0004879,100]
[340265890,1728948658839,-185.453252,0.0004879,100]
[340265891,1728948658848,-185.453252,0.0004879,100]
[340265892,1728948658857,-206026.91475014,0.000488,120]
[340265894,1728948705568,203.1725,0.00038356,7]
[340265895,1728948792951,150.0,0.000257,2]
[340265902,1728948942194,214.765,0.00038356,7]
[340265903,1728949008869,-500.0,0.00039799,60]
[340265904,1728949008898,-500.0,0.00039799,60]
[340265905,1728949008926,-500.0,0.00039799,60]
[340265906,1728949008956,-245.96005805,0.00040011,2]
[340265907,1728949008982,-500.0,0.00040402,60]
[340265908,1728949009009,-500.0,0.00040402,60]
[340265909,1728949009041,-500.0,0.00040402,60]
[340265910,1728949009068,-500.0,0.00041005,60]
[340265911,1728949009094,-639.87965652,0.00041005,60]
[340265912,1728949009119,-500.0,0.00041005,60]
[340265913,1728949009145,-429.53,0.00041095,8]
[340265914,1728949009171,-150.0,0.000411,2]
[340265915,1728949009198,-500.0,0.00041607,60]
[340265916,1728949009226,-500.0,0.00041607,60]
[340265917,1728949009253,-500.0,0.0004221,60]
[340265918,1728949009279,-500.0,0.0004221,60]
[340265919,1728949009306,-1111.0,0.00042411,120]
[340265920,1728949009333,-500.0,0.00042813,60]
[340265921,1728949009372,-500.0,0.00042813,60]
[340265922,1728949009403,-423.63028543,0.00043416,60]
[340265923,1728949010216,-76.36971457,0.00043416,60]
[340265924,1728949010244,-500.0,0.00043416,60]
[340265925,1728949010273,-1108.28507242,0.00043655,28]
[340265926,1728949010301,-500.0,0.00043753,60]
[340265927,1728949010329,-500.0,0.00043753,60]
[340265928,1728949010356,-500.0,0.00043754,60]
[340265929,1728949010384,-500.0,0.00043754,60]
[340265930,1728949010412,-500.0,0.00043754,60]
[340265931,1728949010440,-500.0,0.00043754,60]
[340265932,1728949010466,-500.0,0.00043754,60]
[340265933,1728949010493,-500.0,0.00043754,60]
[340265934,1728949010518,-500.0,0.00043754,60]
[340265935,1728949010545,-500.0,0.00043754,60]
[340265936,1728949010572,-681.93,0.00043754,60]
[340265937,1728949010599,-500.0,0.00043754,60]
[340265938,1728949010627,-500.0,0.00043754,60]
[340265939,1728949010653,-500.0,0.00043754,60]
[340265940,1728949010680,-1133.41521301,0.00043754,120]
[340265941,1728949011348,-366.58478699,0.00043754,120]
[340265942,1728949011502,-500.0,0.00043754,60]
[340265943,1728949011530,-362.08466804,0.00043754,60]
[340265944,1728949011556,-500.0,0.00043754,60]
[340265945,1728949011582,-500.0,0.00043754,60]
[340265946,1728949011607,-500.0,0.00043754,60]
[340265947,1728949011632,-393.43992443,0.00043754,60]
[340265948,1728949011657,-500.0,0.00043754,60]
[340265949,1728949011682,-500.0,0.00043754,60]
[340265950,1728949011708,-500.0,0.00043755,60]
[340265951,1728949011732,-500.0,0.00043755,60]
[340265952,1728949011756,-525.90011101,0.00043755,60]
[340265953,1728949011780,-545.82208233,0.00043755,60]
[340265954,1728949011806,-544.68358441,0.00043755,60]
[340265955,1728949011830,-500.0,0.00043755,60]
[340265956,1728949011854,-508.20223636,0.00043755,60]
[340265957,1728949011880,-500.0,0.00043755,60]
[340265958,1728949011905,-500.0,0.00043755,60]
[340265959,1728949011933,-540.92682034,0.00043755,60]
[340265960,1728949011968,-500.0,0.00043755,60]
[340265961,1728949011996,-212.35578609,0.00043755,60]
[340265962,1728949012583,-248.22286233,0.00043755,60]
[340265963,1728949012610,-500.0,0.00043755,60]
[340265964,1728949012634,-500.0,0.00043755,60]
[340265965,1728949012659,-500.0,0.00043755,60]
[340265966,1728949012684,-586.31998215,0.00043755,60]
[340265967,1728949012709,-500.0,0.00043755,60]
[340265968,1728949012733,-536.35847526,0.00043755,60]
[340265969,1728949012758,-500.0,0.00043755,60]
[340265970,1728949012783,-509.79083911,0.00043755,60]
[340265971,1728949012810,-1003.83,0.00043755,60]
[340265972,1728949012837,-500.0,0.00043755,60]
[340265973,1728949012863,-500.0,0.00043755,60]
[340265974,1728949012889,-500.0,0.00043755,60]
[340265975,1728949012916,-500.0,0.00043755,60]
[340265976,1728949012946,-500.0,0.00043755,60]
[340265977,1728949012973,-512.18233045,0.00043755,60]
[340265978,1728949012998,-500.0,0.00043755,60]
[340265979,1728949013025,-500.0,0.00043755,60]
[340265980,1728949013050,-154.38435229,0.00043755,30]
[340265981,1728949013076,-448.91115841,0.00043835,9]
[340265982,1728949014075,-195.38384159,0.00043835,9]
[340265983,1728949014101,-500.0,0.00043835,120]
[340265984,1728949014127,-500.0,0.00044018,60]
[340265985,1728949014155,-500.0,0.00044018,60]
[340265986,1728949014180,-500.0,0.00044356,60]
[340265987,1728949014207,-500.0,0.00044356,60]
[340265988,1728949014233,-500.0,0.00044357,60]
[340265989,1728949014260,-500.0,0.00044357,60]
[340265990,1728949014287,-500.0,0.00044357,60]
[340265991,1728949014312,-500.0,0.00044357,60]
[340265992,1728949014339,-500.0,0.00044357,60]
[340265993,1728949014364,-378.13046895,0.00044357,60]
[340265994,1728949014392,-500.0,0.00044357,60]
[340265995,1728949014419,-500.0,0.00044357,60]
[340265996,1728949014445,-551.66448545,0.00044357,60]
[340265997,1728949014471,-500.0,0.00044357,60]
[340265998,1728949014497,-500.0,0.00044357,60]
[340265999,1728949014523,-500.0,0.00044357,60]
[340266000,1728949014548,-636.67737404,0.00044357,60]
[340266001,1728949014575,-500.0,0.00044357,60]
[340266002,1728949014601,-238.14382997,0.00044357,60]
[340266003,1728949033382,168.831854,0.0003828,2]
[340266020,1728949186019,201.3425,0.00038356,7]
[340266022,1728949439829,199.245,0.00038356,7]
[340266023,1728949662484,197.17,0.00038356,7]
[340266056,1728949832434,-500.0,0.00039799,60]
[340266057,1728949832443,-500.0,0.00039799,60]
[340266058,1728949832453,-500.0,0.00039799,60]
[340266059,1728949832464,-500.0,0.00039799,60]
[340266060,1728949832474,-500.0,0.00039799,60]
[340266061,1728949832485,-147.58667261,0.00039799,60]
[340266065,1728949838513,-352.41332739,0.00039799,60]
[340266066,1728949838526,-201.47361586,0.00040011,2]
[340266067,1728949838536,-500.0,0.00040402,60]
[340266068,1728949838547,-500.0,0.00040402,60]
[340266069,1728949838558,-447.46950015,0.00040402,60]
[340266070,1728949838569,-500.0,0.00040402,60]
[340266071,1728949838581,-500.0,0.00040402,60]
[340266072,1728949838592,-500.0,0.00040402,60]
[340266073,1728949838602,-151.0,0.00040605,14]
[340266074,1728949838613,-401.96578582,0.00040605,7]
[340266075,1728949838625,-500.0,0.00041005,60]
[340266076,1728949838636,-500.0,0.00041005,60]
[340266077,1728949838646,-500.0,0.00041005,60]
[340266078,1728949838657,-500.0,0.00041005,60]
[340266079,1728949838668,-500.0,0.00041005,60]
[340266080,1728949838678,-394.34,0.00041095,8]
[340266081,1728949838689,-150.0,0.000411,2]
[340266082,1728949838700,-500.0,0.00041607,60]
[340266083,1728949838711,-500.0,0.00041607,60]
[340266084,1728949838722,-500.0,0.00041607,60]
[340266085,1728949838733,-500.0,0.00041607,60]
[340266086,1728949838744,-500.0,0.00041607,60]
[340266087,1728949838756,-500.0,0.0004221,60]
[340266088,1728949838766,-500.0,0.0004221,60]
[340266089,1728949838777,-500.0,0.0004221,60]
[340266090,1728949838788,-500.0,0.0004221,60]
[340266091,1728949838799,-500.0,0.0004221,60]
[340266092,1728949838809,-1111.0,0.00042411,120]
[340266093,1728949838819,-214.04361759,0.00042813,60]
[340266094,1728949838830,-500.0,0.00042813,60]
[340266095,1728949838843,-500.0,0.00042813,60]